fUST/lending_fUST_20250130
["ID","MTS","AMOUNT","RATE_DAILY","PERIOD"]
[350932940,1738215048895,-500.0,0.00016575,2]
[350932941,1738215048904,-500.0,0.00016575,2]
[350932942,1738215048914,-500.0,0.00016575,2]
[350932943,1738215048923,-500.0,0.00016575,2]
[350932944,1738215048932,-1639.8,0.00016575,2]
[350932945,1738215048942,-500.0,0.00016575,2]
[350932946,1738215048951,-500.0,0.00016575,2]
[350932947,1738215048960,-500.0,0.00016575,2]
[350932948,1738215048970,-500.0,0.00016575,2]
[350932949,1738215048979,-500.0,0.00016575,2]
[350932950,1738215048988,-505.58198623,0.00016575,2]
[350932951,1738215048998,-500.0,0.00016575,2]
[350932952,1738215049008,-2680.77,0.00016575,2]
[350932953,1738215049017,-500.0,0.00016575,2]
[350932954,1738215049026,-500.0,0.00016575,2]
[350932955,1738215049035,-3480.53,0.00016575,2]
[350932956,1738215049044,-500.0,0.00016575,2]
[350932957,1738215049053,-194.23451183,0.00016575,2]
[350932958,1738215049063,-500.0,0.00016575,2]
[350932959,1738215049072,-500.0,0.00016575,2]
[350932960,1738215049081,-500.0,0.00016575,2]
[350932961,1738215049090,-506.91923229,0.00016575,2]
[350932962,1738215049100,-240.75,0.00016575,2]
[350932963,1738215049109,-940.8,0.00016575,2]
[350932964,1738215049118,-500.0,0.00016575,2]
[350932965,1738215049128,-5212.74,0.00016575,2]
[350932966,1738215049137,-647.31891659,0.00016575,2]
[350932967,1738215049146,-500.0,0.00016575,2]
[350932968,1738215049155,-493.07130405,0.00016575,2]
[350932969,1738215049165,-500.0,0.00016575,2]
[350932970,1738215049174,-500.0,0.00016575,2]
[350932971,1738215049184,-500.0,0.00016575,2]
[350932972,1738215049194,-500.0,0.00016575,2]
[350932973,1738215049204,-505.24506098,0.00016575,2]
[350932974,1738215049214,-500.0,0.00016575,2]
[350932975,1738215049224,-2559.13,0.00016575,2]
[350932976,1738215049234,-500.0,0.00016575,2]
[350932977,1738215049244,-1174.93,0.000166,2]
[350932978,1738215049253,-300.0,0.000166,6]
[350932979,1738215049263,-151.0,0.000166,2]
[350932980,1738215049275,-151.0,0.000166,2]
[350932981,1738215049287,-151.0,0.000166,2]
[350932982,1738215049297,-6642.25,0.000166,2]
[350932983,1738215049307,-7863.95,0.000166,2]
[350932984,1738215049317,-151.0,0.000166,2]
[350932985,1738215049328,-354.3389743,0.000166,2]
[350932986,1738215049338,-151.0,0.000166,2]
[350932987,1738215049348,-150.0,0.00016603,2]
[350932988,1738215049439,-306.0,0.000167,2]
[350932989,1738215049448,-183.326251,0.00016712,2]
[350932990,1738215049458,-500.0,0.00016712,2]
[350932991,1738215049467,-500.0,0.00016712,2]
[350932992,1738215049477,-500.0,0.00016712,2]
[350932993,1738215049487,-500.0,0.00016712,2]
[350932994,1738215049497,-500.0,0.00016712,2]
[350932995,1738215049506,-500.0,0.00016712,2]
[350932996,1738215049516,-500.0,0.00016712,2]
[350932997,1738215049526,-249.36540535,0.00016712,2]
[350932998,1738215049536,-500.0,0.00016712,2]
[350932999,1738215049545,-500.0,0.00016712,2]
[350933000,1738215049554,-601.25,0.00016712,2]
[350933001,1738215049564,-500.0,0.00016712,2]
[350933002,1738215049574,-500.0,0.00016712,2]
[350933003,1738215049584,-507.61778366,0.00016712,2]
[350933004,1738215049593,-500.0,0.00016712,2]
[350933005,1738215049603,-500.0,0.00016712,2]
[350933006,1738215049612,-500.0,0.00016712,2]
[350933007,1738215049621,-500.0,0.00016712,2]
[350933008,1738215049631,-500.0,0.00016712,2]
[350933009,1738215049640,-500.0,0.00016712,2]
[350933010,1738215049650,-500.0,0.00016712,2]
[350933011,1738215049660,-363.36569523,0.00016712,2]
[350933012,1738215049669,-500.0,0.00016712,2]
[350933013,1738215049679,-500.0,0.00016712,2]
[350933014,1738215049688,-869.59,0.00016712,2]
[350933015,1738215049698,-500.0,0.00016712,2]
[350933016,1738215049708,-500.0,0.00016712,2]
[350933017,1738215049718,-506.55253723,0.00016712,2]
[350933018,1738215049727,-500.0,0.00016712,2]
[350933019,1738215049737,-500.0,0.00016712,2]
[350933020,1738215049746,-568.61967412,0.00016712,2]
[350933021,1738215049755,-500.0,0.00016712,2]
[350933022,1738215049765,-500.0,0.00016712,2]
[350933023,1738215049775,-505.54873306,0.00016712,2]
[350933024,1738215049784,-602.2,0.00016712,2]
[350933025,1738215049793,-345.71287339,0.00016712,2]
[350933026,1738215049802,-500.0,0.00016712,2]
[350933027,1738215049811,-500.0,0.00016712,2]
[350933028,1738215049822,-500.0,0.00016712,2]
[350933029,1738215049830,-467.86987481,0.00016712,2]
[350933030,1738215049839,-500.0,0.00016712,2]
[350933031,1738215049849,-500.0,0.00016712,2]
[350933032,1738215049858,-500.0,0.00016712,2]
[350933033,1738215049867,-500.0,0.00016712,2]
[350933034,1738215049877,-500.0,0.00016712,2]
[350933035,1738215049887,-500.0,0.00016712,2]
[350933036,1738215049896,-500.0,0.00016712,2]
[350933037,1738215049905,-500.0,0.00016712,2]
[350933038,1738215049915,-521.72516624,0.00016712,2]
[350933039,1738215049924,-500.0,0.00016712,2]
[350933040,1738215049934,-623.88,0.00016712,2]
[350933041,1738215049943,-500.0,0.00016712,2]
[350933042,1738215049953,-560.91,0.00016712,2]
[350933043,1738215049964,-500.0,0.00016712,2]
[350933044,1738215049974,-530.44938497,0.00016712,2]
[350933045,1738215049984,-500.0,0.00016712,2]
[350933046,1738215049993,-500.0,0.00016712,2]
[350933047,1738215050003,-500.0,0.00016712,2]
[350933048,1738215050013,-500.0,0.00016712,2]
[350933049,1738215050022,-500.0,0.00016712,2]
[350933050,1738215050032,-500.0,0.00016712,2]
[350933051,1738215050042,-500.0,0.00016712,2]
[350933052,1738215050051,-500.0,0.00016712,2]
[350933053,1738215050061,-500.0,0.00016712,2]
[350933054,1738215050071,-500.0,0.00016712,2]
[350933055,1738215050080,-156.15143459,0.00016712,2]
[350933056,1738215050090,-977.77,0.00016712,2]
[350933057,1738215050099,-500.0,0.00016712,2]
[350933058,1738215050109,-500.0,0.00016712,2]
[350933059,1738215050118,-987.45,0.00016712,2]
[350933060,1738215050127,-500.0,0.00016712,2]
[350933061,1738215050145,-548.41407387,0.00016712,2]
[350933062,1738215050157,-500.0,0.00016712,2]
[350933063,1738215050167,-500.0,0.00016712,2]
[350933064,1738215050177,-6615.15,0.00016712,2]
[350933065,1738215050187,-504.89239055,0.00016712,2]
[350933066,1738215050197,-507.68129292,0.00016712,2]
[350933067,1738215050208,-500.0,0.00016712,2]
[350933068,1738215050218,-500.0,0.00016712,2]
[350933069,1738215050228,-500.0,0.00016712,2]
[350933070,1738215050238,-1971.14,0.00016712,2]
[350933071,1738215050249,-500.0,0.00016712,2]
[350933072,1738215050259,-1350.09,0.00016712,2]
[350933073,1738215050269,-490.68169986,0.00016712,2]
[350933074,1738215050282,-1072.08,0.00016712,2]
[350933075,1738215050292,-500.0,0.00016712,2]
[350933076,1738215050301,-500.0,0.00016712,2]
[350933077,1738215050311,-760.88,0.00016712,2]
[350933078,1738215050323,-192.55708986,0.00016712,2]
[350933079,1738215050333,-540.4,0.00016712,2]
[350933080,1738215050343,-500.0,0.00016712,2]
[350933081,1738215050353,-500.0,0.00016712,2]
[350933082,1738215050363,-500.0,0.00016712,2]
[350933083,1738215050373,-1492.06,0.00016712,2]
[350933084,1738215050382,-500.0,0.00016712,2]
[350933085,1738215050391,-500.0,0.00016712,2]
[350933086,1738215050401,-16429.72,0.00016712,2]
[350933087,1738215050410,-789.56,0.00016712,2]
[350933088,1738215050420,-500.0,0.00016712,2]
[350933089,1738215050429,-2037.21,0.00016712,2]
[350933090,1738215050438,-1163.64,0.00016712,2]
[350933091,1738215050449,-2931.26,0.00016712,2]
[350933092,1738215050459,-500.0,0.00016712,2]
[350933093,1738215050468,-623.75795833,0.00016712,2]
[350933094,1738215050477,-706.47,0.00016712,2]
[350933095,1738215050486,-500.0,0.00016712,2]
[350933096,1738215050496,-807.67,0.00016712,2]
[350933097,1738215050506,-503.6496915,0.00016712,2]
[350933098,1738215050515,-500.0,0.00016712,2]
[350933099,1738215050525,-500.0,0.00016712,2]
[350933100,1738215050534,-508.44641942,0.00016712,2]
[350933101,1738215050544,-500.0,0.00016712,2]
[350933102,1738215050554,-500.0,0.00016712,2]
[350933103,1738215050564,-748.52,0.00016712,2]
[350933104,1738215050575,-500.0,0.00016712,2]
[350933105,1738215050584,-500.0,0.00016712,2]
[350933106,1738215050594,-2497.6,0.00016712,2]
[350933107,1738215050603,-521.28,0.00016712,2]
[350933108,1738215050614,-500.0,0.00016712,2]
[350933109,1738215050623,-500.0,0.00016712,2]
[350933110,1738215050633,-500.0,0.00016712,2]
[350933111,1738215050642,-500.0,0.00016712,2]
[350933112,1738215050653,-1149.01,0.00016712,2]
[350933113,1738215050663,-2669.07,0.00016712,2]
[350933114,1738215050673,-500.0,0.00016712,2]
[350933115,1738215050683,-1136.93,0.00016712,2]
[350933116,1738215050692,-1056.96,0.00016712,2]
[350933117,1738215050702,-500.0,0.00016712,2]
[350933118,1738215050711,-1578.24,0.00016712,2]
[350933119,1738215050720,-500.0,0.00016712,2]
[350933120,1738215050730,-500.0,0.00016712,2]
[350933121,1738215050740,-636.62,0.00016712,2]
[350933122,1738215050749,-1167.12,0.00016712,2]
[350933123,1738215050759,-500.0,0.00016712,2]
[350933124,1738215050768,-500.0,0.00016712,2]
[350933125,1738215050778,-500.0,0.00016712,2]
[350933126,1738215050787,-1651.07,0.00016712,2]
[350933127,1738215050796,-693.59,0.00016712,2]
[350933128,1738215050806,-500.0,0.00016712,2]
[350933129,1738215050818,-500.0,0.00016712,2]
[350933130,1738215050830,-530.34000719,0.00016712,2]
[350933131,1738215050839,-7376.09,0.00016712,2]
[350933132,1738215050848,-500.0,0.00016712,2]
[350933133,1738215050858,-1255.43,0.00016712,2]
[350933134,1738215050868,-500.0,0.00016712,2]
[350933135,1738215050878,-500.0,0.00016712,2]
[350933136,1738215050888,-500.0,0.00016712,2]
[350933137,1738215050897,-500.0,0.00016712,2]
[350933138,1738215050907,-1639.8,0.00016712,2]
[350933139,1738215051037,-500.0,0.00016712,2]
[350933140,1738215051047,-500.0,0.00016712,2]
[350933141,1738215051057,-500.0,0.00016712,2]
[350933142,1738215051066,-500.0,0.00016712,2]
[350933143,1738215051077,-2680.77,0.00016712,2]
[350933144,1738215051086,-500.0,0.00016712,2]
[350933145,1738215051095,-3480.53,0.00016712,2]
[350933146,1738215051105,-500.0,0.00016712,2]
[350933147,1738215051114,-248.25652742,0.00016712,2]
[350933148,1738215051124,-500.0,0.00016712,2]
[350933149,1738215051133,-500.0,0.00016712,2]
[350933150,1738215051143,-940.8,0.00016712,2]
[350933151,1738215051152,-500.0,0.00016712,2]
[350933152,1738215051161,-5212.74,0.00016712,2]
[350933153,1738215051170,-500.0,0.00016712,2]
[350933154,1738215051179,-500.0,0.00016712,2]
[350933155,1738215051189,-500.0,0.00016712,2]
[350933156,1738215051198,-500.0,0.00016712,2]
[350933157,1738215051208,-500.0,0.00016712,2]
[350933158,1738215051217,-2559.13,0.00016712,2]
[350933159,1738215051227,-500.0,0.00016712,2]
[350933160,1738215051237,-1316.82464614,0.000168,2]
[350933161,1738215051246,-1200.0,0.00016842,2]
[350933162,1738215051256,-192.0,0.00016848,2]
[350933163,1738215051266,-500.0,0.00016849,2]
[350933164,1738215051275,-378.99498982,0.00016849,2]
[350933165,1738215051288,-500.0,0.00016849,2]
[350933166,1738215051297,-500.0,0.00016849,2]
[350933167,1738215051307,-500.0,0.00016849,2]
[350933168,1738215051316,-500.0,0.00016849,2]
[350933169,1738215051327,-500.0,0.00016849,2]
[350933170,1738215051337,-500.0,0.00016849,2]
[350933171,1738215051347,-500.0,0.00016849,2]
[350933172,1738215051358,-500.0,0.00016849,2]
[350933173,1738215051367,-500.0,0.00016849,2]
[350933174,1738215051376,-500.0,0.00016849,2]
[350933175,1738215051385,-500.0,0.00016849,2]
[350933176,1738215051394,-500.0,0.00016849,2]
[350933177,1738215051403,-500.0,0.00016849,2]
[350933178,1738215051413,-869.59,0.00016849,2]
[350933179,1738215051422,-500.0,0.00016849,2]
[350933180,1738215051432,-500.0,0.00016849,2]
[350933181,1738215051440,-500.0,0.00016849,2]
[350933182,1738215051450,-500.0,0.00016849,2]
[350933183,1738215051460,-500.0,0.00016849,2]
[350933184,1738215051469,-500.0,0.00016849,2]
[350933185,1738215051478,-602.2,0.00016849,2]
[350933186,1738215051487,-500.0,0.00016849,2]
[350933187,1738215051496,-500.0,0.00016849,2]
[350933188,1738215051506,-500.0,0.00016849,2]
[350933189,1738215051515,-500.0,0.00016849,2]
[350933190,1738215051525,-173.38060431,0.00016849,2]
[350933191,1738215051535,-500.0,0.00016849,2]
[350933192,1738215051544,-500.0,0.00016849,2]
[350933193,1738215051553,-500.0,0.00016849,2]
[350933194,1738215051563,-500.0,0.00016849,2]
[350933195,1738215051573,-560.91,0.00016849,2]
[350933196,1738215051582,-500.0,0.00016849,2]
[350933197,1738215051592,-500.0,0.00016849,2]
[350933198,1738215051601,-500.0,0.00016849,2]
[350933199,1738215051610,-500.0,0.00016849,2]
[350933200,1738215051619,-500.0,0.00016849,2]
[350933201,1738215051628,-500.0,0.00016849,2]
[350933202,1738215051638,-500.0,0.00016849,2]
[350933203,1738215051647,-500.0,0.00016849,2]
[350933204,1738215051656,-500.0,0.00016849,2]
[350933205,1738215051666,-500.0,0.00016849,2]
[350933206,1738215051675,-977.77,0.00016849,2]
[350933207,1738215051684,-500.0,0.00016849,2]
[350933208,1738215051693,-500.0,0.00016849,2]
[350933209,1738215051703,-987.45,0.00016849,2]
[350933210,1738215051712,-500.0,0.00016849,2]
[350933211,1738215051722,-500.0,0.00016849,2]
[350933212,1738215051732,-500.0,0.00016849,2]
[350933213,1738215051742,-6615.15,0.00016849,2]
[350933214,1738215051751,-500.0,0.00016849,2]
[350933215,1738215051761,-508.12380458,0.00016849,2]
[350933216,1738215051771,-500.0,0.00016849,2]
[350933217,1738215051780,-1971.14,0.00016849,2]
[350933218,1738215051789,-1350.09,0.00016849,2]
[350933219,1738215051798,-1072.08,0.00016849,2]
[350933220,1738215051807,-500.0,0.00016849,2]
[350933221,1738215051816,-760.88,0.00016849,2]
[350933222,1738215051826,-540.4,0.00016849,2]
[350933223,1738215051836,-500.0,0.00016849,2]
[350933224,1738215051845,-500.0,0.00016849,2]
[350933225,1738215051855,-500.0,0.00016849,2]
[350933226,1738215051864,-1492.06,0.00016849,2]
[350933227,1738215051874,-500.0,0.00016849,2]
[350933228,1738215051883,-16429.72,0.00016849,2]
[350933229,1738215051892,-789.56,0.00016849,2]
[350933230,1738215051902,-500.0,0.00016849,2]
[350933231,1738215051912,-2037.21,0.00016849,2]
[350933232,1738215051921,-1163.64,0.00016849,2]
[350933233,1738215051930,-2931.26,0.00016849,2]
[350933234,1738215051940,-500.0,0.00016849,2]
[350933235,1738215051950,-706.47,0.00016849,2]
[350933236,1738215051960,-807.67,0.00016849,2]
[350933237,1738215051970,-500.0,0.00016849,2]
[350933238,1738215051979,-500.0,0.00016849,2]
[350933239,1738215051989,-500.0,0.00016849,2]
[350933240,1738215051998,-748.52,0.00016849,2]
[350933241,1738215052007,-297.28281268,0.00016849,2]
[350933242,1738215052016,-500.0,0.00016849,2]
[350933243,1738215052025,-2497.6,0.00016849,2]
[350933244,1738215052034,-521.28,0.00016849,2]
[350933245,1738215052044,-500.0,0.00016849,2]
[350933246,1738215052053,-592.95,0.00016849,2]
[350933247,1738215052063,-500.0,0.00016849,2]
[350933248,1738215052072,-1149.01,0.00016849,2]
[350933249,1738215052081,-2669.07,0.00016849,2]
[350933250,1738215052091,-271.21343259,0.00016849,2]
[350933251,1738215052101,-1136.93,0.00016849,2]
[350933252,1738215052110,-1056.96,0.00016849,2]
[350933253,1738215052119,-500.0,0.00016849,2]
[350933254,1738215052129,-1578.24,0.00016849,2]
[350933255,1738215052138,-1167.12,0.00016849,2]
[350933256,1738215052148,-500.0,0.00016849,2]
[350933257,1738215052159,-500.0,0.00016849,2]
[350933258,1738215052168,-500.0,0.00016849,2]
[350933259,1738215052178,-1651.07,0.00016849,2]
[350933260,1738215052188,-693.59,0.00016849,2]
[350933261,1738215052197,-526.54458044,0.00016849,2]
[350933262,1738215052207,-500.0,0.00016849,2]
[350933263,1738215052217,-7376.09,0.00016849,2]
[350933264,1738215052226,-500.0,0.00016849,2]
[350933265,1738215052236,-1255.43,0.00016849,2]
[350933266,1738215052245,-500.0,0.00016849,2]
[350933267,1738215052255,-649.334849,0.00016849,2]
[350933268,1738215052265,-510.48061614,0.00016849,2]
[350933269,1738215052277,-500.0,0.00016849,2]
[350933270,1738215052294,-1639.8,0.00016849,2]
[350933271,1738215052307,-485.715675,0.00016849,2]
[350933272,1738215052319,-500.0,0.00016849,2]
[350933273,1738215052329,-500.0,0.00016849,2]
[350933274,1738215052340,-2680.77,0.00016849,2]
[350933275,1738215052351,-500.0,0.00016849,2]
[350933276,1738215052361,-3480.53,0.00016849,2]
[350933277,1738215052372,-500.0,0.00016849,2]
[350933278,1738215052504,-500.0,0.00016849,2]
[350933279,1738215052515,-940.8,0.00016849,2]
[350933280,1738215052525,-500.0,0.00016849,2]
[350933281,1738215052535,-5212.74,0.00016849,2]
[350933282,1738215052545,-500.0,0.00016849,2]
[350933283,1738215052555,-500.0,0.00016849,2]
[350933284,1738215052564,-500.0,0.00016849,2]
[350933285,1738215052575,-500.0,0.00016849,2]
[350933286,1738215052584,-500.0,0.00016849,2]
[350933287,1738215052593,-2559.13,0.00016849,2]
[350933288,1738215052603,-649.60758222,0.00016849,2]
[350933289,1738215052612,-500.0,0.00016906,2]
[350933290,1738215052623,-420.0,0.00016938,2]
[350933291,1738215052633,-500.0,0.00016973,2]
[350933292,1738215052642,-500.0,0.00016973,2]
[350933293,1738215052651,-500.0,0.00016986,2]
[350933294,1738215052661,-500.0,0.00016986,2]
[350933295,1738215052670,-500.0,0.00016986,2]
[350933296,1738215052680,-500.0,0.00016986,2]
[350933297,1738215052690,-500.0,0.00016986,2]
[350933298,1738215052700,-500.0,0.00016986,2]
[350933299,1738215052710,-500.0,0.00016986,2]
[350933300,1738215052720,-500.0,0.00016986,2]
[350933301,1738215052729,-500.0,0.00016986,2]
[350933302,1738215052739,-500.0,0.00016986,2]
[350933303,1738215052749,-500.0,0.00016986,2]
[350933304,1738215052758,-500.0,0.00016986,2]
[350933305,1738215052768,-500.0,0.00016986,2]
[350933306,1738215052777,-869.59,0.00016986,2]
[350933307,1738215052787,-500.0,0.00016986,2]
[350933308,1738215052797,-500.0,0.00016986,2]
[350933309,1738215052806,-500.0,0.00016986,2]
[350933310,1738215052815,-500.0,0.00016986,2]
[350933311,1738215052824,-500.0,0.00016986,2]
[350933312,1738215052833,-500.0,0.00016986,2]
[350933313,1738215052843,-602.2,0.00016986,2]
[350933314,1738215052853,-500.0,0.00016986,2]
[350933315,1738215052862,-500.0,0.00016986,2]
[350933316,1738215052871,-517.42,0.00016986,2]
[350933317,1738215052881,-500.0,0.00016986,2]
[350933318,1738215052890,-500.0,0.00016986,2]
[350933319,1738215052899,-500.0,0.00016986,2]
[350933320,1738215052909,-500.0,0.00016986,2]
[350933321,1738215052918,-560.91,0.00016986,2]
[350933322,1738215052928,-500.0,0.00016986,2]
[350933323,1738215052938,-500.0,0.00016986,2]
[350933324,1738215052947,-500.0,0.00016986,2]
[350933325,1738215052957,-500.0,0.00016986,2]
[350933326,1738215052966,-511.54215196,0.00016986,2]
[350933327,1738215052976,-500.0,0.00016986,2]
[350933328,1738215052985,-500.0,0.00016986,2]
[350933329,1738215052995,-500.0,0.00016986,2]
[350933330,1738215053004,-602.02073329,0.00016986,2]
[350933331,1738215053014,-977.77,0.00016986,2]
[350933332,1738215053023,-500.0,0.00016986,2]
[350933333,1738215053033,-500.0,0.00016986,2]
[350933334,1738215053042,-987.45,0.00016986,2]
[350933335,1738215053052,-500.0,0.00016986,2]
[350933336,1738215053062,-623.54004501,0.00016986,2]
[350933337,1738215053071,-500.0,0.00016986,2]
[350933338,1738215053081,-6615.15,0.00016986,2]
[350933339,1738215053091,-500.0,0.00016986,2]
[350933340,1738215053101,-500.0,0.00016986,2]
[350933341,1738215053111,-1971.14,0.00016986,2]
[350933342,1738215053120,-1350.09,0.00016986,2]
[350933343,1738215053131,-1072.08,0.00016986,2]
[350933344,1738215053140,-500.0,0.00016986,2]
[350933345,1738215053150,-760.88,0.00016986,2]
[350933346,1738215053159,-540.4,0.00016986,2]
[350933347,1738215053169,-500.0,0.00016986,2]
[350933348,1738215053179,-500.0,0.00016986,2]
[350933349,1738215053189,-1492.06,0.00016986,2]
[350933350,1738215053198,-16429.72,0.00016986,2]
[350933351,1738215053208,-789.56,0.00016986,2]
[350933352,1738215053218,-500.0,0.00016986,2]
[350933353,1738215053228,-2037.21,0.00016986,2]
[350933354,1738215053237,-1163.64,0.00016986,2]
[350933355,1738215053247,-2931.26,0.00016986,2]
[350933356,1738215053256,-500.0,0.00016986,2]
[350933357,1738215053266,-706.47,0.00016986,2]
[350933358,1738215053277,-807.67,0.00016986,2]
[350933359,1738215053288,-500.0,0.00016986,2]
[350933360,1738215053298,-500.0,0.00016986,2]
[350933361,1738215053308,-153.98931206,0.00016986,2]
[350933362,1738215053319,-748.52,0.00016986,2]
[350933363,1738215053330,-613.93141583,0.00016986,2]
[350933364,1738215053339,-2497.6,0.00016986,2]
[350933365,1738215053350,-521.28,0.00016986,2]
[350933366,1738215053361,-500.0,0.00016986,2]
[350933367,1738215053371,-500.0,0.00016986,2]
[350933368,1738215053380,-1149.01,0.00016986,2]
[350933369,1738215053390,-2669.07,0.00016986,2]
[350933370,1738215053400,-1136.93,0.00016986,2]
[350933371,1738215053409,-1056.96,0.00016986,2]
[350933372,1738215053419,-500.0,0.00016986,2]
[350933373,1738215053428,-1578.24,0.00016986,2]
[350933374,1738215053437,-1167.12,0.00016986,2]
[350933375,1738215053447,-293.2204986,0.00016986,2]
[350933376,1738215053456,-500.0,0.00016986,2]
[350933377,1738215053465,-500.0,0.00016986,2]
[350933378,1738215053474,-1651.07,0.00016986,2]
[350933379,1738215053483,-693.59,0.00016986,2]
[350933380,1738215053494,-500.0,0.00016986,2]
[350933381,1738215053504,-7376.09,0.00016986,2]
[350933382,1738215053513,-500.0,0.00016986,2]
[350933383,1738215053522,-1255.43,0.00016986,2]
[350933384,1738215053531,-500.0,0.00016986,2]
[350933385,1738215053541,-1639.8,0.00016986,2]
[350933386,1738215053550,-164.53,0.00016986,2]
[350933387,1738215053559,-500.0,0.00016986,2]
[350933388,1738215053569,-2680.77,0.00016986,2]
[350933389,1738215053578,-500.0,0.00016986,2]
[350933390,1738215053588,-3480.53,0.00016986,2]
[350933391,1738215053598,-500.0,0.00016986,2]
[350933392,1738215053607,-500.0,0.00016986,2]
[350933393,1738215053617,-940.8,0.00016986,2]
[350933394,1738215053627,-500.0,0.00016986,2]
[350933395,1738215053636,-5212.74,0.00016986,2]
[350933396,1738215053646,-500.0,0.00016986,2]
[350933397,1738215053655,-545.31912858,0.00016986,2]
[350933398,1738215053665,-500.0,0.00016986,2]
[350933399,1738215053675,-500.0,0.00016986,2]
[350933400,1738215053684,-500.0,0.00016986,2]
[350933401,1738215053694,-2559.13,0.00016986,2]
[350933402,1738215053703,-158.61,0.00016993,2]
[350933403,1738215053712,-114420.2913193,0.00017,2]
[350933404,1738215053721,-1350.0,0.00017,2]
[350933405,1738215053730,-2000.0,0.00017,2]
[350933406,1738215053739,-2000.0,0.00017,2]
[350933407,1738215053823,-151.0,0.00017019,3]
[350933408,1738215053832,-179.0,0.00017056,2]
[350933409,1738215053841,-180.21,0.00017056,2]
[350933410,1738215053851,-501.40496255,0.00017092,2]
[350933411,1738215053860,-151.0,0.00017094,3]
[350933412,1738215053869,-1000.0,0.00017121,2]
[350933413,1738215053879,-500.0,0.00017121,2]
[350933414,1738215053888,-1000.0,0.00017121,2]
[350933415,1738215053898,-1000.0,0.00017121,2]
[350933416,1738215053907,-913.17,0.00017123,2]
[350933417,1738215053916,-500.0,0.00017123,2]
[350933418,1738215053925,-500.0,0.00017123,2]
[350933419,1738215053935,-403.80463845,0.00017123,2]
[350933420,1738215053945,-330.0803141,0.00017123,2]
[350933421,1738215053954,-509.97210173,0.00017123,2]
[350933422,1738215053964,-500.0,0.00017123,2]
[350933423,1738215053974,-500.0,0.00017123,2]
[350933424,1738215053983,-500.0,0.00017123,2]
[350933425,1738215053991,-500.0,0.00017123,2]
[350933426,1738215054001,-500.0,0.00017123,2]
[350933427,1738215054010,-500.0,0.00017123,2]
[350933428,1738215054019,-869.59,0.00017123,2]
[350933429,1738215054029,-500.0,0.00017123,2]
[350933430,1738215054039,-500.0,0.00017123,2]
[350933431,1738215054048,-587.45,0.00017123,2]
[350933432,1738215054057,-500.0,0.00017123,2]
[350933433,1738215054066,-602.2,0.00017123,2]
[350933434,1738215054078,-500.0,0.00017123,2]
[350933435,1738215054087,-500.0,0.00017123,2]
[350933436,1738215054097,-500.0,0.00017123,2]
[350933437,1738215054107,-500.0,0.00017123,2]
[350933438,1738215054116,-500.0,0.00017123,2]
[350933439,1738215054125,-560.91,0.00017123,2]